fUSD/lending_fUSD_20260606
["ID","MTS","AMOUNT","RATE_DAILY","PERIOD"]
[424228514,1780675843000,-151.0,0.0002429,2]
[424228540,1780675843000,-200.0,0.00024966,2]
[424228487,1780675843000,-2067.0,0.00024,2]
[424228491,1780675843000,-151.0,0.00024017,2]
[424228489,1780675843000,-749.0,0.00024,2]
[424228482,1780675843000,-282.0,0.00024,2]
[424228480,1780675843000,-1472.0,0.00024,2]
[424228485,1780675843000,-395.0,0.00024,2]
[424228481,1780675843000,-483.0,0.00024,2]
[424228483,1780675843000,-1864.0,0.00024,2]
[424228486,1780675843000,-394.0,0.00024,2]
[424228492,1780675843000,-4989.11878577,0.00024017,2]
[424228494,1780675843000,-151.0,0.00024072,2]
[424228497,1780675843000,-200.0,0.00024089,2]
[424228495,1780675843000,-5173.71618084,0.00024072,2]
[424228498,1780675843000,-2494.55939288,0.00024089,2]
[424228496,1780675843000,-151.0,0.00024089,2]
[424228493,1780675843000,-862.28603014,0.00024072,2]
[424228501,1780675843000,-1797.17199343,0.00024127,2]
[424228502,1780675843000,-350.0,0.0002416,5]
[424228499,1780675843000,-894.19061325,0.00024127,2]
[424228503,1780675843000,-927.27566594,0.00024182,2]
[424228505,1780675843000,-6731.92469508,0.00024189,2]
[424228506,1780675843000,-200.0,0.00024189,2]
[424228504,1780675843000,-151.0,0.00024182,2]
[424228511,1780675843000,-181.08010149,0.0002429,2]
[424228512,1780675843000,-435.66071739,0.0002429,2]
[424228507,1780675843000,-961.58486558,0.00024237,2]
[424228513,1780675843000,-217.15233878,0.0002429,2]
[424228542,1780675843000,-152.0,0.00024989,3]
[424228500,1780675843000,-151.0,0.00024127,2]
[424228543,1780675843000,-1178.0,0.00025,2]
[424228572,1780675843000,-200.0,0.00025742,2]
[424228577,1780675843000,-310.95709833,0.00025934,2]
[424228579,1780675843000,-200.0,0.00025934,2]
[424228578,1780675843000,-201.93286098,0.00025934,2]
[424228587,1780675843000,-2884.75459676,0.00026281,2]
[424228601,1780675843000,-6731.92469508,0.00026522,2]
[424228583,1780675843000,-190.53901939,0.00025934,2]
[424228581,1780675843000,-151.0,0.00025934,2]
[424228586,1780675843000,-151.0,0.00026281,2]
[424228582,1780675843000,-642.41782865,0.00025934,2]
[424228588,1780675843000,-152.0,0.0002629,3]
[424228580,1780675843000,-242.15909246,0.00025934,2]
[424228584,1780675843000,-550.0,0.00026,2]
[424228585,1780675843000,-891.6586494,0.00026217,2]
[424228589,1780675843000,-848.8,0.00026296,2]
[424228592,1780675843000,-933.0,0.00026441,2]
[424228591,1780675843000,-6072.0,0.00026441,2]
[424228593,1780675843000,-599.60298507,0.00026481,2]
[424228594,1780675843000,-747.80937859,0.00026481,2]
[424228595,1780675843000,-367.42780468,0.00026482,2]
[424228600,1780675843000,-200.0,0.00026519,2]
[424228599,1780675843000,-151.0,0.00026482,2]
[424228596,1780675843000,-209.40437684,0.00026482,2]
[424228597,1780675843000,-200.0,0.00026482,2]
[424228590,1780675843000,-1227.0,0.00026441,2]
[424228598,1780675843000,-251.11897888,0.00026482,2]
[424228602,1780675843000,-2000.0,0.00026549,2]
[424228571,1780675843000,-2781.82699784,0.00025733,2]
[424228573,1780675843000,-6731.92469508,0.00025744,2]
[424228545,1780675843000,-408.0,0.00025,2]
[424228570,1780675843000,-151.0,0.00025733,2]
[424228550,1780675843000,-497.41011367,0.00025,2]
[424228551,1780675843000,-291.0,0.00025,2]
[424228544,1780675843000,-295.0,0.00025,2]
[424228546,1780675843000,-600.0,0.00025,2]
[424228541,1780675843000,-6731.92469508,0.00024967,2]
[424228548,1780675843000,-1491.0,0.00025,2]
[424228549,1780675843000,-1474.0,0.00025,2]
[424228574,1780675843000,-812.65013937,0.00025763,2]
[424228552,1780675843000,-1881.0,0.00025,2]
[424228554,1780675843000,-397.0,0.00025,2]
[424228555,1780675843000,-2072.0,0.00025,2]
[424228553,1780675843000,-402.0,0.00025,2]
[424228560,1780675843000,-2682.57183977,0.00025185,2]
[424228559,1780675843000,-151.0,0.00025185,2]
[424228547,1780675843000,-248.0,0.00025,2]
[424228556,1780675843000,-758.0,0.00025,2]
[424228563,1780675843000,-829.12830338,0.00025386,2]
[424228567,1780675843000,-200.0,0.00025386,2]
[424228575,1780675843000,-200.0,0.00025858,2]
[424228566,1780675843000,-151.0,0.00025386,2]
[424228565,1780675843000,-233.5188934,0.00025386,2]
[424228576,1780675843000,-242.15909246,0.00025934,2]
[424228569,1780675843000,-233.5188934,0.00025386,2]
[424228564,1780675843000,-194.72792766,0.00025386,2]
[424228561,1780675843000,-5530.0,0.000252,5]
[424228557,1780675843000,-427.0,0.000251,7]
[424228562,1780675843000,-233.5188934,0.00025386,2]
[424228558,1780675843000,-240.34,0.0002512,2]
[424228568,1780675843000,-500.0,0.00025386,2]
[424228644,1780675844000,-922.99,0.00027609,7]
[424228640,1780675844000,-500.0,0.000275,7]
[424228646,1780675844000,-159.23215963,0.00027835,2]
[424228645,1780675844000,-150.0,0.00027646,2]
[424228650,1780675844000,-189.87405657,0.00027837,2]
[424228630,1780675844000,-265.44,0.000274,14]
[424228639,1780675844000,-150.0,0.00027448,2]
[424228631,1780675844000,-250.0,0.000274,2]
[424228629,1780675844000,-23373.14,0.00027397,10]
[424228636,1780675844000,-5211.31,0.000274,2]
[424228632,1780675844000,-954.01,0.000274,7]
[424228642,1780675844000,-270.0455652,0.00027578,2]
[424228641,1780675844000,-225.18697532,0.00027578,2]
[424228655,1780675844000,-185.02531711,0.00027841,2]
[424228651,1780675844000,-171.35000025,0.00027841,2]
[424228649,1780675844000,-159.48564329,0.00027836,2]
[424228647,1780675844000,-151.03710521,0.00027835,2]
[424228648,1780675844000,-194.28751106,0.00027836,2]
[424228661,1780675844000,-168.31296465,0.00027841,2]
[424228653,1780675844000,-157.6909773,0.00027841,2]
[424228652,1780675844000,-156.80767122,0.00027841,2]
[424228663,1780675844000,-373.68026004,0.00027841,2]
[424228662,1780675844000,-322.99689568,0.00027841,2]
[424228664,1780675844000,-184.73657355,0.00027841,2]
[424228654,1780675844000,-170.03317755,0.00027841,2]
[424228657,1780675844000,-184.25124249,0.00027841,2]
[424228634,1780675844000,-5211.31,0.000274,2]
[424228643,1780675844000,-151.0,0.00027578,2]
[424228628,1780675844000,-28047.77,0.00027397,10]
[424228625,1780675844000,-1000.0,0.00027397,20]
[424228638,1780675844000,-1713.43,0.000274,7]
[424228656,1780675844000,-159.30279558,0.00027841,2]
[424228604,1780675844000,-150.0,0.00026572,2]
[424228612,1780675844000,-217.15233878,0.0002703,2]
[424228611,1780675844000,-19166.3745444,0.00027029,2]
[424228609,1780675844000,-2991.49051684,0.00026829,2]
[424228606,1780675844000,-1273.0,0.00026572,2]
[424228613,1780675844000,-217.97277875,0.0002703,2]
[424228610,1780675844000,-599.652936,0.00027,2]
[424228607,1780675844000,-177.55,0.00026802,2]
[424228605,1780675844000,-437.0,0.00026572,2]
[424228603,1780675844000,-150.0,0.00026572,2]
[424228608,1780675844000,-293.28494606,0.00026829,2]
[424228614,1780675844000,-260.4103811,0.0002703,2]
[424228615,1780675844000,-151.0,0.0002703,2]
[424228617,1780675844000,-200.0,0.00027295,2]
[424228616,1780675844000,-152.0,0.00027229,4]
[424228619,1780675844000,-350.0,0.00027312,9]
[424228620,1780675844000,-157.98571428,0.00027397,2]
[424228621,1780675844000,-415.43870545,0.00027397,2]
[424228618,1780675844000,-6731.92469508,0.000273,2]
[424228622,1780675844000,-1500.0,0.00027397,2]
[424228624,1780675844000,-300.0,0.00027397,2]
[424228623,1780675844000,-539.24,0.00027397,2]
[424228626,1780675844000,-21556.78,0.00027397,10]
[424228637,1780675844000,-5211.31,0.000274,2]
[424228627,1780675844000,-33657.33,0.00027397,10]
[424228633,1780675844000,-5211.31,0.000274,2]
[424228635,1780675844000,-5211.31,0.000274,2]
[424228658,1780675844000,-156.16077839,0.00027841,2]
[424228659,1780675844000,-248.52477842,0.00027841,2]
[424228704,1780675844000,-1453.57,0.0002863,30]
[424228697,1780675844000,-175.0,0.00028544,7]
[424228698,1780675844000,-272.0,0.00028544,7]
[424228701,1780675844000,-398.83,0.00028586,30]
[424228702,1780675844000,-150.0,0.00028591,21]
[424228703,1780675844000,-398.83,0.00028624,2]
[424228705,1780675844000,-165.33535732,0.0002863,30]
[424228714,1780675844000,-398.83,0.00028662,7]
[424228709,1780675844000,-2234.32,0.0002863,30]
[424228707,1780675844000,-1308.22,0.0002863,30]
[424228706,1780675844000,-1834.78,0.0002863,30]
[424228713,1780675844000,-275.55892887,0.00028643,2]
[424228712,1780675844000,-150.0,0.00028643,2]
[424228708,1780675844000,-903.81,0.0002863,30]
[424228695,1780675844000,-168.09438876,0.00028506,2]
[424228711,1780675844000,-1227.1,0.0002863,30]
[424228716,1780675844000,-151.0,0.00028674,2]
[424228727,1780675844000,-903.81,0.00028797,7]
[424228717,1780675844000,-290.3986294,0.00028674,2]
[424228726,1780675844000,-1308.22,0.00028797,7]
[424228718,1780675844000,-274.0,0.00028695,30]
[424228719,1780675844000,-398.83,0.000287,30]
[424228720,1780675844000,-2691.0,0.00028718,5]
[424228723,1780675844000,-216.86219559,0.00028767,2]
[424228722,1780675844000,-398.83,0.00028738,2]
[424228724,1780675844000,-398.83,0.00028776,7]
[424228721,1780675844000,-1945.0,0.00028718,5]
[424228660,1780675844000,-196.20257203,0.00027841,2]
[424228725,1780675844000,-1834.78,0.00028797,7]
[424228715,1780675844000,-242.15909246,0.00028674,2]
[424228699,1780675844000,-398.83,0.00028548,7]
[424228710,1780675844000,-1927.12,0.0002863,30]
[424228696,1780675844000,-398.83,0.0002851,2]
[424228668,1780675844000,-150.94618425,0.00027988,2]
[424228665,1780675844000,-181.0206811,0.00027841,2]
[424228669,1780675844000,-168.59672556,0.00027988,2]
[424228667,1780675844000,-157.98571428,0.00027854,2]
[424228670,1780675844000,-182.04489292,0.00027988,2]
[424228666,1780675844000,-295.65530997,0.00027841,2]
[424228672,1780675844000,-170.81836223,0.00027988,2]
[424228671,1780675844000,-166.52270763,0.00027988,2]
[424228673,1780675844000,-600.0,0.00028,2]
[424228700,1780675844000,-263.0,0.00028585,30]
[424228675,1780675844000,-1713.43,0.00028,7]
[424228677,1780675844000,-200.0,0.00028072,2]
[424228680,1780675844000,-233.5188934,0.00028126,2]
[424228688,1780675844000,-234.87751754,0.00028337,2]
[424228683,1780675844000,-150.0,0.00028144,2]
[424228674,1780675844000,-215.77576141,0.00028,10]
[424228689,1780675844000,-150.0,0.00028394,2]
[424228679,1780675844000,-2138.43196399,0.00028125,2]
[424228693,1780675844000,-200.0,0.00028497,2]
[424228694,1780675844000,-1713.43,0.000285,7]
[424228692,1780675844000,-175.0,0.00028479,2]
[424228691,1780675844000,-2000.0,0.00028471,7]
[424228687,1780675844000,-1000.0,0.000283,2]
[424228690,1780675844000,-1684.54,0.000284,30]
[424228684,1780675844000,-954.01,0.000282,7]
[424228686,1780675844000,-315.0,0.000283,2]
[424228681,1780675844000,-280.03725111,0.00028126,2]
[424228682,1780675844000,-151.0,0.00028126,2]
[424228685,1780675844000,-848.8,0.00028267,2]
[424228768,1780675845000,-1227.1,0.00028964,2]
[424228766,1780675845000,-2234.32,0.00028964,2]
[424228770,1780675845000,-179.97120459,0.00028971,2]
[424228773,1780675845000,-196.11992075,0.00029,2]
[424228771,1780675845000,-1365.0,0.00029,2]
[424228765,1780675845000,-903.81,0.00028964,2]
[424228778,1780675845000,-1713.43,0.00029,7]
[424228767,1780675845000,-1927.12,0.00028964,2]
[424228761,1780675845000,-21368.0,0.00028904,2]
[424228764,1780675845000,-1308.22,0.00028964,2]
[424228769,1780675845000,-398.83,0.00028966,2]
[424228760,1780675845000,-3328.15944047,0.000289,2]
[424228777,1780675845000,-215.77576141,0.00029,7]
[424228774,1780675845000,-5457.73627302,0.00029,2]
[424228786,1780675845000,-150.0,0.00029064,30]
[424228775,1780675845000,-1098.02,0.00029,30]
[424228776,1780675845000,-215.77576141,0.00029,30]
[424228779,1780675845000,-398.83,0.00029004,7]
[424228780,1780675845000,-323.0,0.00029034,30]
[424228781,1780675845000,-150.0,0.00029035,30]
[424228782,1780675845000,-150.0,0.00029035,30]
[424228784,1780675845000,-444.0,0.00029035,30]
[424228783,1780675845000,-222.0,0.00029035,30]
[424228785,1780675845000,-398.83,0.00029042,30]
[424228791,1780675845000,-205.22997683,0.0002913,20]
[424228787,1780675845000,-200.0,0.00029064,30]
[424228790,1780675845000,-398.83,0.00029118,7]
[424228763,1780675845000,-1834.78,0.00028964,2]
[424228772,1780675845000,-1341.0,0.00029,2]
[424228758,1780675845000,-3328.15944047,0.000289,2]
[424228731,1780675845000,-265.44,0.000288,14]
[424228762,1780675845000,-398.83,0.00028928,30]
[424228730,1780675845000,-1227.1,0.00028797,7]
[424228728,1780675845000,-2234.32,0.00028797,7]
[424228733,1780675845000,-215.77576141,0.000288,10]
[424228736,1780675845000,-1140.96510734,0.00028809,5]
[424228734,1780675845000,-1117.56871975,0.00028809,5]
[424228738,1780675845000,-1034.18851213,0.00028809,5]
[424228739,1780675845000,-1112.05708391,0.00028809,5]
[424228740,1780675845000,-1097.22363616,0.00028809,5]
[424228732,1780675845000,-954.01,0.000288,7]
[424228737,1780675845000,-1097.79318874,0.00028809,5]
[424228735,1780675845000,-1102.4430103,0.00028809,5]
[424228750,1780675845000,-398.83,0.00028814,30]
[424228753,1780675845000,-398.83,0.0002889,7]
[424228759,1780675845000,-3328.15944047,0.000289,2]
[424228752,1780675845000,-398.83,0.00028852,2]
[424228742,1780675845000,-1087.15515859,0.00028809,5]
[424228751,1780675845000,-200.0,0.00028848,2]
[424228747,1780675845000,-1114.18444457,0.00028809,5]
[424228746,1780675845000,-1139.04958072,0.00028809,5]
[424228744,1780675845000,-1046.12302594,0.00028809,5]
[424228748,1780675845000,-1027.16616651,0.00028809,5]
[424228743,1780675845000,-1019.0211278,0.00028809,5]
[424228745,1780675845000,-1022.91239088,0.00028809,5]
[424228749,1780675845000,-1067.59841742,0.00028809,5]
[424228754,1780675845000,-150.0,0.00028892,2]
[424228755,1780675845000,-1367.93801152,0.000289,2]
[424228756,1780675845000,-1367.93801151,0.000289,2]
[424228757,1780675845000,-1367.93801151,0.000289,2]
[424228741,1780675845000,-1057.52700946,0.00028809,5]
[424228789,1780675845000,-2014.88046539,0.000291,2]
[424228729,1780675845000,-1927.12,0.00028797,7]
[424228800,1780675845000,-158.37892555,0.00029146,2]
[424228827,1780675845000,-362.04136221,0.00029152,2]
[424228825,1780675845000,-369.47314709,0.00029152,2]
[424228828,1780675845000,-591.31061995,0.00029152,2]
[424228824,1780675845000,-150.0932334,0.00029152,2]
[424228826,1780675845000,-210.88447106,0.00029152,2]
[424228831,1780675845000,-398.83,0.00029156,30]
[424228832,1780675845000,-397.41,0.00029194,2]
[424228846,1780675845000,-1308.22,0.00029299,7]
[424228842,1780675845000,-398.98,0.00029232,7]
[424228836,1780675845000,-251.11897888,0.00029222,2]
[424228844,1780675845000,-1834.78,0.00029299,7]
[424228833,1780675845000,-398.83,0.00029194,2]
[424228834,1780675845000,-621.78829552,0.0002922,2]
[424228835,1780675845000,-775.4783256,0.0002922,2]
[424228837,1780675845000,-151.0,0.00029222,2]
[424228847,1780675845000,-903.81,0.00029299,7]
[424228838,1780675845000,-301.14337869,0.00029222,2]
[424228840,1780675845000,-397.55,0.00029232,7]
[424228849,1780675845000,-1927.12,0.00029299,7]
[424228851,1780675845000,-1227.1,0.00029299,7]
[424228859,1780675845000,-162.0,0.00029304,30]
[424228848,1780675845000,-2234.32,0.00029299,7]
[424228858,1780675845000,-341.63672445,0.00029304,2]
[424228852,1780675845000,-219.8018793,0.00029304,2]
[424228857,1780675845000,-333.04541527,0.00029304,2]
[424228854,1780675845000,-301.89236849,0.00029304,2]
[424228855,1780675845000,-337.19345111,0.00029304,2]
[424228856,1780675845000,-364.08978585,0.00029304,2]
[424228788,1780675845000,-398.83,0.0002908,2]
[424228823,1780675845000,-747.36052008,0.00029152,2]
[424228821,1780675845000,-336.62592931,0.00029152,2]
[424228853,1780675845000,-237.90879951,0.00029304,2]
[424228820,1780675845000,-208.0233191,0.00029152,2]
[424228822,1780675845000,-645.99379135,0.00029152,2]
[424228802,1780675845000,-318.97128657,0.00029147,2]
[424228803,1780675845000,-163.76756029,0.00029147,2]
[424228794,1780675845000,-903.81,0.00029132,30]
[424228797,1780675845000,-1227.1,0.00029132,30]
[424228795,1780675845000,-2234.32,0.00029132,30]
[424228792,1780675845000,-1834.78,0.00029132,30]
[424228799,1780675845000,-302.07421042,0.00029146,2]
[424228804,1780675845000,-212.23450418,0.00029148,2]
[424228796,1780675845000,-1927.12,0.00029132,30]
[424228798,1780675845000,-318.46431926,0.00029146,2]
[424228801,1780675845000,-388.57502212,0.00029147,2]
[424228805,1780675845000,-206.12853381,0.00029148,2]
[424228806,1780675845000,-379.74811314,0.00029148,2]
[424228793,1780675845000,-1308.22,0.00029132,30]
[424228816,1780675845000,-188.54169667,0.00029151,2]
[424228807,1780675845000,-313.61534243,0.00029151,2]
[424228829,1780675845000,-411.0,0.00029155,30]
[424228818,1780675845000,-175.14925073,0.00029152,2]
[424228819,1780675845000,-392.40514406,0.00029152,2]
[424228815,1780675845000,-312.32155679,0.00029151,2]
[424228813,1780675845000,-318.60559116,0.00029151,2]
[424228830,1780675845000,-397.41,0.00029156,30]
[424228810,1780675845000,-340.0663551,0.00029151,2]
[424228817,1780675845000,-497.04955683,0.00029152,2]
[424228814,1780675845000,-368.50248498,0.00029151,2]
[424228812,1780675845000,-370.05063422,0.00029151,2]
[424228808,1780675845000,-342.7000005,0.00029151,2]
[424228811,1780675845000,-176.06129258,0.00029151,2]
[424228809,1780675845000,-315.3819546,0.00029151,2]
[424228899,1780675846000,-265.44,0.000297,14]
[424228893,1780675846000,-150.0,0.00029572,2]
[424228894,1780675846000,-437.0,0.00029572,2]
[424228895,1780675846000,-1273.0,0.00029572,2]
[424228896,1780675846000,-179.97120459,0.00029623,2]
[424228897,1780675846000,-1098.02,0.0002965,30]
[424228898,1780675846000,-157.98,0.0002968,2]
[424228900,1780675846000,-260.4103811,0.0002977,2]
[424228910,1780675846000,-1713.43,0.0003,7]
[424228902,1780675846000,-918.02,0.00029899,30]
[424228890,1780675846000,-1500.0,0.00029534,15]
[424228892,1780675846000,-150.0,0.00029534,2]
[424228904,1780675846000,-1092.93,0.00029899,7]
[424228906,1780675846000,-650.0,0.0003,2]
[424228905,1780675846000,-150.0,0.00029986,20]
[424228909,1780675846000,-173.0,0.0003,14]
[424228903,1780675846000,-191.0,0.00029899,30]
[424228908,1780675846000,-954.01,0.0003,7]
[424228907,1780675846000,-314.0,0.0003,30]
[424228911,1780675846000,-215.77576141,0.0003,3]
[424228913,1780675846000,-152.25430123,0.00030019,2]
[424228920,1780675846000,-236.93052565,0.00030019,2]
[424228915,1780675846000,-232.20223725,0.00030019,2]
[424228921,1780675846000,-316.75785111,0.00030019,2]
[424228891,1780675846000,-1500.0,0.00029534,15]
[424228916,1780675846000,-162.51234177,0.00030019,2]
[424228901,1780675846000,-200.0,0.0002984,2]
[424228888,1780675846000,-1713.43,0.000295,7]
[424228872,1780675846000,-1478.0,0.00029413,30]
[424228881,1780675846000,-406.0,0.00029418,30]
[424228919,1780675846000,-453.11131563,0.00030019,2]
[424228860,1780675846000,-189.91756697,0.0002939,2]
[424228861,1780675846000,-954.01,0.000294,7]
[424228865,1780675846000,-298.0,0.0002941,30]
[424228864,1780675846000,-167.0,0.0002941,30]
[424228867,1780675846000,-150.0,0.00029412,30]
[424228863,1780675846000,-174.0,0.0002941,30]
[424228873,1780675846000,-1472.0,0.00029413,30]
[424228874,1780675846000,-483.0,0.00029413,30]
[424228870,1780675846000,-585.0,0.00029413,30]
[424228866,1780675846000,-284.0,0.00029411,30]
[424228869,1780675846000,-177.0,0.00029412,30]
[424228889,1780675846000,-225.31145604,0.00029523,7]
[424228871,1780675846000,-235.0,0.00029413,30]
[424228875,1780675846000,-282.0,0.00029413,30]
[424228885,1780675846000,-933.0,0.00029441,2]
[424228887,1780675846000,-238.0,0.000295,7]
[424228883,1780675846000,-1227.0,0.00029441,2]
[424228886,1780675846000,-152.0,0.00029468,5]
[424228880,1780675846000,-749.0,0.00029413,30]
[424228878,1780675846000,-394.0,0.00029413,30]
[424228884,1780675846000,-6072.0,0.00029441,2]
[424228882,1780675846000,-14500.0,0.0002944,3]
[424228876,1780675846000,-1864.0,0.00029413,30]
[424228877,1780675846000,-395.0,0.00029413,30]
[424228879,1780675846000,-2067.0,0.00029413,30]
[424228868,1780675846000,-150.0,0.00029412,30]
[424228912,1780675846000,-420.0,0.00030001,30]
[424228862,1780675846000,-150.0,0.0002941,30]
[424228917,1780675846000,-477.69647888,0.00030019,2]
[424228959,1780675846000,-208.03935119,0.00030025,2]
[424228950,1780675846000,-477.90838674,0.00030025,2]
[424228953,1780675846000,-182.39085711,0.00030025,2]
[424228951,1780675846000,-552.75372746,0.00030025,2]
[424228954,1780675846000,-377.08339334,0.00030025,2]
[424228952,1780675846000,-468.48233518,0.00030025,2]
[424228955,1780675846000,-745.57433525,0.00030025,2]
[424228964,1780675846000,-968.99068703,0.00030025,2]
[424228961,1780675846000,-588.60771608,0.00030025,2]
[424228963,1780675846000,-504.93889396,0.00030025,2]
[424228970,1780675846000,-886.96592992,0.00030025,2]
[424228960,1780675846000,-154.47772206,0.00030025,2]
[424228962,1780675846000,-416.04663819,0.00030025,2]
[424228968,1780675846000,-543.06204331,0.00030025,2]
[424228965,1780675846000,-1121.04078012,0.00030025,2]
[424228966,1780675846000,-300.1864668,0.00030025,2]
[424228967,1780675846000,-554.20972064,0.00030025,2]
[424228969,1780675846000,-421.76894211,0.00030025,2]
[424228973,1780675846000,-286.24,0.00030137,2]
[424228971,1780675846000,-539.24,0.00030137,2]
[424228976,1780675846000,-500.0,0.00030137,3]
[424228972,1780675846000,-2500.0,0.00030137,120]
[424228974,1780675846000,-1000.0,0.00030137,120]
[424228975,1780675846000,-170.67,0.00030137,2]
[424228977,1780675846000,-500.0,0.00030137,3]
[424228979,1780675846000,-500.0,0.00030137,3]
[424228914,1780675846000,-167.72648814,0.00030019,2]
[424228949,1780675846000,-211.82062982,0.00030025,2]
[424228958,1780675846000,-243.33337437,0.00030025,2]
[424228978,1780675846000,-500.0,0.00030137,3]
[424228956,1780675846000,-201.09154202,0.00030025,2]
[424228918,1780675846000,-234.75917049,0.00030019,2]
[424228923,1780675846000,-238.38636542,0.00030019,2]
[424228931,1780675846000,-244.35649287,0.0003002,2]
[424228924,1780675846000,-194.51751527,0.0003002,2]
[424228932,1780675846000,-350.0,0.0003002,15]
[424228933,1780675846000,-424.46900835,0.00030021,2]
[424228922,1780675846000,-203.89392415,0.00030019,2]
[424228957,1780675846000,-350.29850147,0.00030025,2]
[424228926,1780675846000,-255.93860241,0.0003002,2]
[424228929,1780675846000,-275.98051366,0.0003002,2]
[424228927,1780675846000,-478.45692986,0.0003002,2]
[424228930,1780675846000,-186.5413932,0.0003002,2]
[424228928,1780675846000,-327.53512059,0.0003002,2]
[424228925,1780675846000,-582.86253318,0.0003002,2]
[424228944,1780675846000,-510.09953265,0.00030025,2]
[424228934,1780675846000,-412.25706763,0.00030021,2]
[424228938,1780675846000,-514.05000075,0.00030025,2]
[424228941,1780675846000,-248.33440062,0.00030025,2]
[424228939,1780675846000,-473.07293191,0.00030025,2]
[424228940,1780675846000,-202.69120328,0.00030025,2]
[424228937,1780675846000,-470.42301365,0.00030025,2]
[424228948,1780675846000,-555.07595133,0.00030025,2]
[424228942,1780675846000,-152.07802303,0.00030025,2]
[424228946,1780675846000,-153.37924528,0.00030025,2]
[424228947,1780675846000,-352.12258515,0.00030025,2]
[424228945,1780675846000,-290.21510298,0.00030025,2]
[424228943,1780675846000,-171.82064566,0.00030025,2]
[424228935,1780675846000,-569.62216972,0.00030021,2]
[424229030,1780675847000,-229.36585467,0.00030182,2]
[424229028,1780675847000,-499.5681229,0.00030181,2]
[424229029,1780675847000,-512.45508668,0.00030181,2]
[424229014,1780675847000,-1500.0,0.00030137,15]
[424229013,1780675847000,-200.0,0.00030137,2]
[424229010,1780675847000,-200.0,0.00030137,2]
[424229011,1780675847000,-930.00000004,0.00030137,120]
[424229009,1780675847000,-157.98,0.00030137,30]
[424229008,1780675847000,-157.98,0.00030137,2]
[424229007,1780675847000,-314.19,0.00030137,2]
[424229012,1780675847000,-200.0,0.00030137,2]
[424229019,1780675847000,-206.51363855,0.00030181,2]
[424229034,1780675847000,-512.784,0.000302,3]
[424229020,1780675847000,-285.7116664,0.00030181,2]
[424229025,1780675847000,-505.79017667,0.00030181,2]
[424229021,1780675847000,-475.81759902,0.00030181,2]
[424229023,1780675847000,-452.83855274,0.00030181,2]
[424229027,1780675847000,-546.13467877,0.00030181,2]
[424229026,1780675847000,-248.46683468,0.00030181,2]
[424229024,1780675847000,-206.4264811,0.00030181,2]
[424229022,1780675847000,-258.81861294,0.00030181,2]
[424229032,1780675847000,-990.48,0.000302,2]
[424229042,1780675847000,-179.97120459,0.00030275,2]
[424229033,1780675847000,-253.13,0.000302,2]
[424229043,1780675847000,-1098.02,0.000303,30]
[424229018,1780675847000,-179.14172686,0.00030181,2]
[424229031,1780675847000,-471.96,0.000302,2]
[424229015,1780675847000,-200.0,0.00030138,2]
[424228992,1780675847000,-150.0,0.00030137,2]
[424229017,1780675847000,-277.51202807,0.00030181,2]
[424228982,1780675847000,-457.28143312,0.00030137,2]
[424228980,1780675847000,-152.42714437,0.00030137,2]
[424228983,1780675847000,-500.0,0.00030137,3]
[424228981,1780675847000,-304.85428875,0.00030137,2]
[424228984,1780675847000,-250.0,0.00030137,2]
[424228985,1780675847000,-250.0,0.00030137,2]
[424228986,1780675847000,-250.0,0.00030137,2]
[424228993,1780675847000,-396.05208952,0.00030137,120]
[424228989,1780675847000,-500.0,0.00030137,3]